bitfinex/quotes_BTCUSD_20221001
["timestamp","ask_amount","ask_price","bid_price","bid_amount"]
[1664602576382,0.129361,19311.0,19310.0,1.51890822]
[1664602576383,0.36722698,19311.0,19310.0,1.51890822]
[1664602576824,0.36722698,19311.0,19310.0,0.61890822]
[1664602577052,0.36722698,19311.0,19310.0,1.61890822]
[1664602577276,0.36722698,19311.0,19310.0,1.66390822]
[1664602577539,0.23786598,19311.0,19310.0,1.56390822]
[1664602577981,0.23786598,19311.0,19310.0,2.15211822]
[1664602578213,0.36721998,19312.0,19310.0,2.18180122]
[1664602578438,0.36721998,19312.0,19311.0,0.61890822]
[1664602578689,0.23786598,19312.0,19311.0,2.25890822]
[1664602578903,0.2671616,19316.0,19311.0,4.06664824]
[1664602578904,0.23786598,19314.0,19311.0,4.06664824]
[1664602579122,0.22709054,19316.0,19313.0,1.00717678]
[1664602579352,0.358744,19315.0,19314.0,0.71657077]
[1664602579581,0.57909471,19315.0,19314.0,0.51173144]
[1664602579812,0.81696069,19315.0,19314.0,0.51173144]
[1664602580040,0.75837724,19315.0,19314.0,0.51173144]
[1664602580266,0.39963324,19315.0,19314.0,0.51173144]
[1664602580727,0.39963324,19315.0,19314.0,1.34075742]
[1664602580925,0.39963324,19315.0,19314.0,1.44075742]
[1664602581143,0.39963324,19315.0,19314.0,1.51633142]
[1664602581673,0.39963324,19315.0,19314.0,0.94604944]
[1664602581937,0.39963324,19315.0,19314.0,3.58604944]
[1664602582160,0.39963324,19315.0,19314.0,3.63604944]
[1664602582391,0.39963324,19315.0,19314.0,3.54004944]
[1664602582618,0.39963324,19315.0,19314.0,3.15173144]
[1664602582839,0.23786598,19315.0,19314.0,2.51173144]
[1664602583050,0.27458568,19315.0,19313.0,0.23681955]
[1664602583259,0.0367197,19315.0,19314.0,0.045]
[1664602583503,0.358744,19315.0,19314.0,0.045]
[1664602583713,0.59660998,19315.0,19314.0,0.045]
[1664602584463,0.59660998,19315.0,19313.0,0.74855099]
[1664602584688,0.358744,19314.0,19313.0,0.51173144]
[1664602584815,0.59660998,19314.0,19313.0,0.51173144]
[1664602585090,0.65627098,19314.0,19313.0,0.51173144]
[1664602585305,0.65627098,19314.0,19313.0,0.55573144]
[1664602585515,0.29752698,19314.0,19313.0,0.55573144]
[1664602585749,0.59660998,19314.0,19313.0,0.55573144]
[1664602586174,0.23786598,19314.0,19313.0,0.55573144]
[1664602586452,0.23786598,19314.0,19313.0,0.51173144]
[1664602586667,0.59660998,19314.0,19313.0,0.51173144]
[1664602586883,0.23786598,19314.0,19313.0,0.51173144]
[1664602587158,0.26165258,19314.0,19313.0,0.51173144]
[1664602587351,0.26165258,19314.0,19308.0,1.334905]
[1664602587352,0.40164811,19313.0,19308.0,1.334905]
[1664602587575,0.358744,19312.0,19309.0,2.15173144]
[1664602587807,0.19604071,19313.0,19310.0,0.51882733]
[1664602587932,0.01722541,19312.0,19311.0,0.56173144]
[1664602588142,0.41659855,19312.0,19311.0,0.56173144]
[1664602588448,0.75811714,19312.0,19311.0,0.51173144]
[1664602589046,0.88747714,19312.0,19311.0,0.51173144]
[1664602589270,0.88747714,19312.0,19311.0,0.53173144]
[1664602589735,0.88747714,19312.0,19311.0,0.02]
[1664602589736,1.48747714,19312.0,19311.0,0.02]
[1664602589910,1.83262972,19312.0,19311.0,0.02]
[1664602590131,1.64019842,19312.0,19311.0,0.02]
[1664602590554,0.488203,19311.0,19307.0,0.22956687]
[1664602590805,0.358744,19310.0,19308.0,0.51173144]
[1664602591001,0.59660998,19309.0,19308.0,0.51173144]
[1664602593299,0.59660998,19309.0,19308.0,0.53573144]
[1664602594414,0.59660998,19309.0,19308.0,0.51173144]
[1664602595287,0.59660998,19309.0,19308.0,0.53573144]
[1664602595934,0.68214518,19309.0,19308.0,0.53573144]
[1664602596606,0.68214518,19309.0,19308.0,0.51173144]
[1664602597262,0.68214518,19309.0,19308.0,0.53573144]
[1664602597655,0.84412886,19309.0,19308.0,0.53573144]
[1664602598696,0.84412886,19309.0,19308.0,0.51173144]
[1664602599052,0.75859366,19309.0,19308.0,0.51173144]
[1664602599266,0.39984966,19309.0,19308.0,0.53573144]
[1664602599688,0.39984966,19309.0,19308.0,0.89447544]
[1664602599938,0.39984966,19309.0,19308.0,0.53573144]
[1664602600585,0.39984966,19309.0,19308.0,0.51173144]
[1664602601225,0.39984966,19309.0,19308.0,0.53573144]
[1664602601694,0.39984966,19309.0,19308.0,0.89447544]
[1664602602076,0.39984966,19309.0,19308.0,0.53573144]
[1664602602508,0.39984966,19309.0,19308.0,0.87047544]
[1664602602692,0.39984966,19309.0,19308.0,0.51173144]
[1664602603370,0.39984966,19309.0,19308.0,0.53573144]
[1664602604485,0.23786598,19309.0,19308.0,0.51173144]
[1664602605398,0.23786598,19309.0,19308.0,0.53573144]
[1664602605620,0.36723698,19310.0,19308.0,1.48292166]
[1664602605847,0.129371,19310.0,19309.0,1.13796011]
[1664602606087,0.129371,19310.0,19309.0,2.15711011]
[1664602606312,0.129371,19310.0,19309.0,3.79711011]
[1664602607002,0.36723698,19310.0,19309.0,3.79711011]
[1664602607377,0.129371,19310.0,19309.0,3.81811011]
[1664602607618,0.129371,19310.0,19309.0,3.86811011]
[1664602607619,0.36723698,19310.0,19309.0,3.86811011]
[1664602607863,0.36723698,19310.0,19309.0,3.39897733]
[1664602608069,0.129371,19310.0,19309.0,3.39897733]
[1664602608340,0.129371,19310.0,19309.0,4.27982733]
[1664602608586,0.129371,19310.0,19309.0,4.61757133]
[1664602608809,0.36722698,19311.0,19309.0,4.20882733]
[1664602609029,0.36722698,19311.0,19310.0,0.51163685]
[1664602609568,0.129361,19311.0,19310.0,3.15163685]
[1664602610394,0.36722698,19311.0,19310.0,3.15163685]
[1664602610610,0.5265068,19311.0,19310.0,3.15163685]
[1664602610828,0.28864082,19311.0,19310.0,3.15163685]
[1664602611019,0.5265068,19311.0,19310.0,3.15163685]
[1664602611234,0.28864082,19311.0,19310.0,3.15163685]
[1664602611683,0.28864082,19311.0,19310.0,3.18163685]
[1664602611885,0.28864082,19311.0,19310.0,3.23163685]
[1664602612100,0.28864082,19311.0,19310.0,3.28163685]
[1664602612101,0.15927982,19311.0,19310.0,3.28163685]
[1664602612453,0.15927982,19311.0,19310.0,3.41110285]
[1664602612902,0.15927982,19311.0,19310.0,4.79870767]
[1664602613123,0.15927982,19311.0,19310.0,4.76870767]
[1664602613348,0.15927982,19311.0,19310.0,5.005547]
[1664602613566,0.36721098,19315.0,19313.0,0.10709589]
[1664602613789,0.36721098,19315.0,19314.0,1.07523377]
[1664602614020,0.23786598,19315.0,19314.0,3.35657077]
[1664602614250,0.23786598,19315.0,19314.0,3.28116844]
[1664602614482,0.23786598,19315.0,19314.0,3.63991244]
[1664602614701,0.23786598,19315.0,19314.0,3.28116844]
[1664602614921,0.23724252,19315.0,19314.0,3.28116844]
[1664602615147,0.23224252,19316.0,19314.0,3.28116844]
[1664602615372,0.23224252,19315.0,19314.0,2.801437]
[1664602615633,0.23224252,19315.0,19314.0,3.060316]
[1664602615857,0.129327,19317.0,19316.0,0.10709589]
[1664602616074,0.488071,19317.0,19315.0,0.129432]
[1664602616307,0.129327,19317.0,19315.0,0.129432]
[1664602616524,0.23224252,19316.0,19315.0,0.129432]
[1664602617464,0.23224252,19316.0,19315.0,0.153432]
[1664602617687,0.23224252,19316.0,19315.0,2.793432]
[1664602618130,0.23224252,19316.0,19315.0,2.893432]
[1664602618357,0.29169947,19316.0,19315.0,2.17573144]
[1664602618588,0.62714347,19316.0,19311.0,0.27678037]
[1664602618829,0.41784265,19315.0,19312.0,3.15173144]
[1664602619047,0.16549195,19316.0,19313.0,0.51173144]
[1664602619048,0.13182123,19316.0,19313.0,0.51173144]
[1664602619286,0.23224252,19314.0,19313.0,0.51882733]
[1664602619540,0.59098652,19314.0,19313.0,2.15173144]
[1664602619756,0.39075942,19314.0,19313.0,3.15173144]
[1664602620466,0.44276926,19314.0,19313.0,2.0]
[1664602620699,0.258702,19313.0,19310.0,0.17811789]
[1664602620934,0.258702,19313.0,19310.0,0.51173144]
[1664602620935,0.27514663,19311.0,19310.0,0.51173144]
[1664602621174,0.78921252,19311.0,19310.0,1.15173144]
[1664602621391,0.78921252,19311.0,19310.0,0.018]
[1664602621392,1.40969747,19311.0,19310.0,0.018]
[1664602621654,1.87883025,19311.0,19310.0,0.018]
[1664602622122,1.85287536,19311.0,19310.0,0.018]
[1664602622572,1.85287536,19311.0,19310.0,1e-08]
[1664602622795,1.85287536,19311.0,19307.0,0.00010134]
[1664602623023,0.11197065,19308.0,19307.0,0.00010134]
[1664602623459,0.70295717,19308.0,19307.0,0.00010134]
[1664602625398,0.78295717,19308.0,19307.0,0.00010134]
[1664602626762,0.70295717,19308.0,19307.0,0.00010134]
[1664602627485,0.78295717,19308.0,19307.0,0.00010134]
[1664602627677,0.92320706,19308.0,19307.0,0.00010134]
[1664602628773,0.84320706,19308.0,19307.0,0.00010134]
[1664602629019,0.99882192,19308.0,19307.0,0.00010134]
[1664602629463,1.07882192,19308.0,19307.0,0.00010134]
[1664602630596,0.99882192,19308.0,19307.0,0.00010134]
[1664602631399,1.07882192,19308.0,19307.0,0.00010134]
[1664602632740,0.99882192,19308.0,19307.0,0.00010134]
[1664602633496,1.07882192,19308.0,19307.0,0.00010134]
[1664602634788,0.99882192,19308.0,19307.0,0.00010134]
[1664602635452,0.92320706,19308.0,19307.0,0.00010134]
[1664602636626,0.84320706,19308.0,19307.0,0.00010134]
[1664602637488,0.92220706,19308.0,19307.0,0.00010134]
[1664602638810,3.63781392,19308.0,19307.0,0.00010134]
[1664602639527,0.92220706,19308.0,19307.0,0.00010134]
[1664602640840,0.84320706,19308.0,19307.0,0.00010134]
[1664602641516,0.92320706,19308.0,19307.0,0.00010134]
[1664602641740,4.39869984,19308.0,19307.0,0.00010134]
[1664602642026,0.04228065,19302.0,19301.0,0.1]
[1664602642406,0.15535854,19302.0,19301.0,0.51173144]
[1664602642503,0.258836,19303.0,19301.0,3.15173144]
[1664602642741,0.49107852,19303.0,19302.0,0.51173144]
[1664602642967,0.41883689,19303.0,19302.0,0.51173144]
[1664602643192,0.41883689,19303.0,19302.0,1.51173144]
[1664602643421,0.55607852,19303.0,19302.0,0.51673144]
[1664602643647,0.91482252,19303.0,19302.0,0.51673144]
[1664602644311,1.00630477,19303.0,19302.0,0.51673144]
[1664602644785,0.94130477,19303.0,19302.0,0.51173144]
[1664602645465,1.40884477,19303.0,19300.0,0.75863726]
[1664602645700,1.40884477,19303.0,19300.0,0.76635661]
[1664602645701,0.23224252,19301.0,19300.0,0.76635661]
[1664602646414,0.23224252,19301.0,19300.0,0.51173144]
[1664602647538,0.30924252,19301.0,19300.0,0.53573144]
[1664602648930,0.23224252,19301.0,19300.0,0.51173144]
[1664602649665,0.30924252,19301.0,19300.0,0.53573144]
[1664602649965,0.47038858,19301.0,19300.0,0.53573144]
[1664602650870,0.39338858,19301.0,19300.0,0.51173144]
[1664602651532,0.39338858,19301.0,19300.0,0.55173144]
[1664602652688,0.39338858,19301.0,19300.0,0.51173144]
[1664602653596,0.47038858,19301.0,19300.0,0.53573144]
[1664602654308,0.23814606,19301.0,19300.0,0.74057077]
[1664602654533,0.23814606,19301.0,19300.0,2.84980844]
[1664602654760,0.16114606,19301.0,19300.0,3.82580844]
[1664602655446,0.16114606,19301.0,19300.0,4.24426544]
[1664602655668,0.16114606,19301.0,19300.0,4.28166544]
[1664602655890,0.15572679,19302.0,19300.0,5.24040944]
[1664602656126,0.129415,19303.0,19301.0,1.41173144]
[1664602656127,0.28514179,19303.0,19301.0,1.41173144]
[1664602656342,0.129415,19303.0,19302.0,0.66945079]
[1664602656565,0.28566139,19303.0,19302.0,0.71945079]
[1664602656786,0.28566139,19303.0,19302.0,3.35945079]
[1664602657030,0.129407,19304.0,19302.0,3.35945079]
[1664602657263,0.129407,19304.0,19303.0,1.41173144]
[1664602657748,0.129407,19304.0,19303.0,4.05173144]
[1664602658632,0.129407,19304.0,19303.0,4.04493144]
[1664602658874,0.129407,19304.0,19303.0,4.09493144]
[1664602659095,0.23224252,19305.0,19303.0,4.17447144]
[1664602659332,0.23224252,19305.0,19304.0,0.61945079]
[1664602659565,0.23224252,19306.0,19304.0,1.51945079]
[1664602659795,0.23224252,19306.0,19305.0,0.61945079]
[1664602660032,0.23224252,19306.0,19305.0,1.51945079]
[1664602660495,0.23224252,19306.0,19305.0,0.61945079]
[1664602660719,0.59098652,19306.0,19305.0,0.61945079]
[1664602661170,0.59098652,19306.0,19305.0,0.51173144]
[1664602661480,0.23224252,19306.0,19305.0,0.51173144]
[1664602661693,0.67098652,19306.0,19305.0,0.51173144]
[1664602662803,0.59098652,19306.0,19305.0,0.51173144]
[1664602663255,0.75103913,19306.0,19305.0,0.51173144]
[1664602663481,0.83103913,19306.0,19305.0,0.51173144]
[1664602664819,0.75103913,19306.0,19305.0,0.51173144]
[1664602665602,0.67098652,19306.0,19305.0,0.51173144]
[1664602666905,0.59098652,19306.0,19305.0,0.51173144]
[1664602667581,0.67098652,19306.0,19305.0,0.51173144]
[1664602668110,0.67098652,19306.0,19300.0,4.62771304]
[1664602668111,0.38367361,19304.0,19299.0,0.14159626]
[1664602668352,0.23224252,19300.0,19299.0,0.1011]
[1664602668578,0.61421077,19300.0,19299.0,0.0011]
[1664602669738,0.63821077,19300.0,19299.0,0.0591]
[1664602670432,0.79837692,19300.0,19299.0,0.0591]
[1664602670837,0.77437692,19300.0,19299.0,0.0011]
[1664602671602,0.79837692,19300.0,19299.0,0.0591]
[1664602672846,0.77437692,19300.0,19299.0,0.0011]
[1664602673153,1.08334355,19300.0,19299.0,0.0011]
[1664602673594,0.67321077,19300.0,19299.0,0.0011]
[1664602674109,1.14234355,19300.0,19299.0,0.0011]
[1664602674445,0.67321077,19300.0,19299.0,0.0011]
[1664602674890,0.61421077,19300.0,19299.0,0.0011]
[1664602675533,0.67321077,19300.0,19299.0,0.0011]
[1664602676913,0.61421077,19300.0,19299.0,0.0011]
[1664602677540,0.67321077,19300.0,19299.0,0.0011]
[1664602678385,1.14234355,19300.0,19299.0,0.0011]
[1664602678615,0.67580311,19300.0,19299.0,0.0011]
[1664602678827,0.61680311,19300.0,19299.0,0.0011]
[1664602679708,0.67580311,19300.0,19299.0,0.0011]
[1664602680749,0.8376567,19300.0,19299.0,0.0011]
[1664602681431,0.7786567,19300.0,19299.0,0.0011]
[1664602681641,0.8376567,19300.0,19299.0,0.0011]
[1664602682235,1.30678948,19300.0,19299.0,0.0011]
[1664602682448,0.8376567,19300.0,19299.0,0.0011]
[1664602682845,0.7786567,19300.0,19299.0,0.0011]
[1664602683076,0.7786567,19300.0,19299.0,0.00100195]
[1664602683722,0.04228065,19296.0,19295.0,0.19438311]
[1664602683953,0.129459,19297.0,19295.0,0.70611455]
[1664602684123,0.129459,19297.0,19296.0,1.258744]
[1664602684399,0.06159234,19300.0,19299.0,0.10771935]
[1664602684577,0.06159234,19300.0,19299.0,3.3779049]
[1664602684783,0.06159234,19300.0,19299.0,5.9779049]
[1664602684784,0.00259234,19300.0,19299.0,5.9779049]
[1664602685002,4.0,19305.0,19300.0,0.313093]
[1664602685177,4.0,19305.0,19304.0,1.263026]
[1664602685427,4.0,19305.0,19304.0,5.08872955]
[1664602685636,4.0,19305.0,19304.0,5.13872955]
[1664602685850,4.0,19305.0,19304.0,4.93389022]
[1664602686753,4.0,19305.0,19304.0,4.61086422]
[1664602687027,4.358744,19305.0,19304.0,4.61086422]
[1664602687184,4.0,19305.0,19304.0,4.61086422]
[1664602687631,4.0,19305.0,19304.0,4.68986422]
[1664602688242,4.0,19305.0,19304.0,5.04860822]
[1664602688553,4.0,19305.0,19304.0,5.43712722]
[1664602688790,4.0,19305.0,19304.0,5.64860822]
[1664602689011,4.0,19305.0,19304.0,5.56960822]
[1664602689236,4.0,19305.0,19304.0,5.95812722]
[1664602689464,4.0,19305.0,19304.0,5.95312722]
[1664602689687,4.0,19305.0,19304.0,6.03212722]
[1664602691027,4.0,19305.0,19304.0,4.99438322]
[1664602691246,4.0,19305.0,19304.0,5.99142197]
[1664602691708,4.0,19305.0,19304.0,6.07142197]
[1664602692413,4.0,19305.0,19304.0,5.71267797]
[1664602692634,4.0,19305.0,19304.0,6.07882197]
[1664602692858,4.0,19305.0,19304.0,5.39882197]
[1664602693670,4.15569834,19305.0,19304.0,6.07882197]
[1664602694340,4.15569834,19305.0,19304.0,5.39382197]
[1664602694558,4.15569834,19305.0,19304.0,5.03507797]
[1664602694782,4.15569834,19305.0,19304.0,5.39382197]
[1664602694995,4.15569834,19305.0,19304.0,5.31382197]
[1664602695689,4.15569834,19305.0,19304.0,5.49382197]
[1664602696145,4.15569834,19305.0,19304.0,4.52765044]
[1664602696816,4.15569834,19305.0,19304.0,4.88639444]
[1664602697039,4.15569834,19305.0,19304.0,4.80639444]
[1664602697269,4.0,19305.0,19304.0,4.80639444]
[1664602697490,4.0,19305.0,19304.0,4.85639444]
[1664602697729,4.0,19305.0,19304.0,4.98539444]
[1664602699097,4.0,19305.0,19304.0,4.90639444]
[1664602699782,4.0,19305.0,19304.0,4.98539444]
[1664602701027,4.0,19305.0,19304.0,4.90639444]
[1664602701478,4.0,19305.0,19304.0,4.54765044]
[1664602701677,4.0,19305.0,19304.0,4.62665044]
[1664602701920,4.0,19305.0,19304.0,4.98539444]
[1664602702150,4.22724252,19305.0,19304.0,4.52665044]
[1664602702389,4.22724252,19305.0,19304.0,4.57665044]
[1664602702617,4.0,19305.0,19304.0,4.98539444]
[1664602703095,4.0,19305.0,19304.0,4.90639444]
[1664602703549,4.22724252,19305.0,19304.0,4.79899444]
[1664602703866,4.22724252,19305.0,19304.0,4.56925044]
[1664602704110,4.22724252,19305.0,19304.0,4.61925044]
[1664602704306,4.22724252,19305.0,19304.0,4.51925044]
[1664602704528,4.38238977,19305.0,19304.0,4.56925044]
[1664602704745,4.38238977,19305.0,19304.0,4.61925044]
[1664602704968,4.38238977,19305.0,19304.0,4.89899444]
[1664602705188,4.38238977,19305.0,19304.0,4.54025044]
[1664602705408,4.38238977,19305.0,19304.0,4.84899444]
[1664602705653,4.38238977,19305.0,19304.0,4.56925044]
[1664602706085,4.38238977,19305.0,19304.0,4.92799444]
[1664602706586,4.38238977,19305.0,19304.0,4.97799444]
[1664602706807,4.38238977,19305.0,19304.0,4.93210644]
[1664602707035,4.38238977,19305.0,19304.0,4.44025044]
[1664602707254,4.38238977,19305.0,19304.0,4.79899444]
[1664602707724,4.38238977,19305.0,19304.0,4.92799444]
[1664602707963,4.22724252,19305.0,19304.0,4.87799444]
[1664602708171,4.22724252,19305.0,19304.0,4.92799444]
[1664602708530,4.22724252,19305.0,19304.0,4.87799444]
[1664602708746,4.22724252,19305.0,19304.0,2.23799444]
[1664602708960,4.22724252,19305.0,19304.0,1.80025044]
[1664602709626,4.22724252,19305.0,19304.0,1.87925044]
[1664602710025,4.22724252,19305.0,19304.0,2.23799444]
[1664602710430,4.22724252,19305.0,19304.0,1.87925044]
[1664602710875,4.22724252,19305.0,19304.0,2.23799444]
[1664602711098,4.22724252,19305.0,19304.0,2.15899444]
[1664602711734,4.22724252,19305.0,19304.0,2.23799444]
[1664602711735,4.0,19305.0,19304.0,2.23799444]
[1664602711950,4.0,19305.0,19304.0,4.97799444]
[1664602712365,4.22724252,19305.0,19304.0,4.97799444]
[1664602712926,4.22724252,19305.0,19304.0,4.54025044]
[1664602713169,4.0,19305.0,19304.0,4.89899444]
[1664602713631,4.0,19305.0,19304.0,4.97799444]
[1664602714715,4.16119792,19305.0,19304.0,4.97799444]
[1664602714928,4.16109411,19305.0,19304.0,4.89899444]
[1664602715382,4.16109411,19305.0,19304.0,5.41702144]
[1664602715823,4.16109411,19305.0,19304.0,5.13727744]
[1664602716039,3.99989619,19305.0,19304.0,5.49602144]
[1664602716716,3.99989619,19305.0,19304.0,5.14467744]
[1664602716931,3.99989619,19305.0,19304.0,5.42442144]
[1664602717761,3.99989619,19305.0,19304.0,5.50342144]
[1664602719101,3.99989619,19305.0,19304.0,5.42442144]
[1664602719758,3.99989619,19305.0,19304.0,5.50342144]
[1664602720957,3.99989619,19305.0,19304.0,5.42442144]
[1664602721808,3.99989619,19305.0,19304.0,5.50342144]
[1664602722604,4.15390921,19305.0,19304.0,5.50342144]
[1664602722886,4.15390921,19305.0,19304.0,5.42442144]
[1664602723742,4.15390921,19305.0,19304.0,3.86342144]
[1664602723981,4.15390921,19305.0,19304.0,2.86342144]
[1664602724646,4.15390921,19305.0,19304.0,3.46342144]
[1664602725188,4.15390921,19305.0,19304.0,3.38442144]
[1664602725418,3.99989619,19305.0,19304.0,2.78442144]
[1664602725631,3.99989619,19305.0,19304.0,3.38442144]
[1664602725748,3.99989619,19305.0,19304.0,3.46342144]
[1664602725966,3.99989619,19305.0,19304.0,2.50467744]
[1664602726196,3.99989619,19305.0,19304.0,2.86342144]
[1664602726933,3.99989619,19305.0,19304.0,2.78442144]
[1664602727932,3.99989619,19305.0,19304.0,2.86342144]
[1664602728610,3.99989619,19305.0,19304.0,3.46342144]
[1664602728840,3.99989619,19305.0,19304.0,9.32342144]
[1664602729066,3.99989619,19305.0,19304.0,11.28442144]
[1664602729286,3.99989619,19305.0,19304.0,11.88442144]
[1664602729501,3.99989619,19305.0,19304.0,11.28442144]
[1664602729750,3.99989619,19305.0,19304.0,11.36342144]
[1664602730674,3.99989619,19305.0,19304.0,11.00467744]
[1664602731135,4.22713871,19305.0,19304.0,5.06567744]
[1664602731357,4.22713871,19305.0,19304.0,4.06567744]
[1664602731845,4.22713871,19305.0,19304.0,3.61925044]
[1664602733164,4.38337889,19305.0,19304.0,3.64025044]
[1664602733920,4.15613637,19305.0,19304.0,4.07799444]
[1664602734266,4.15613637,19305.0,19304.0,3.71925044]
[1664602734333,3.99989619,19305.0,19304.0,3.71925044]
[1664602734944,3.99989619,19305.0,19304.0,3.99899444]
[1664602735396,3.99989619,19305.0,19304.0,3.64025044]
[1664602735953,4.22713871,19305.0,19304.0,3.71925044]
[1664602737049,4.22713871,19305.0,19304.0,4.15827744]
[1664602737994,4.22713871,19305.0,19304.0,4.23727744]
[1664602739031,4.22713871,19305.0,19304.0,4.15827744]
[1664602739934,4.22713871,19305.0,19304.0,4.23727744]
[1664602740372,3.99989619,19305.0,19304.0,4.38902532]
[1664602740805,4.22713871,19305.0,19304.0,1.95602144]
[1664602741290,4.22713871,19305.0,19304.0,1.87702144]
[1664602741505,4.38371848,19305.0,19304.0,1.87702144]
[1664602741983,4.38371848,19305.0,19304.0,1.95602144]
[1664602742309,4.15647596,19305.0,19304.0,1.95602144]
[1664602743134,4.15647596,19305.0,19304.0,1.87702144]
[1664602743713,4.15647596,19305.0,19304.0,1.95602144]
[1664602744314,4.15647596,19305.0,19304.0,4.59602144]
[1664602744815,4.38371848,19305.0,19304.0,1.59727744]
[1664602745073,4.38371848,19305.0,19304.0,1.51827744]
[1664602745513,4.22713871,19305.0,19304.0,4.15827744]
[1664602745976,4.22713871,19305.0,19304.0,4.23727744]
[1664602746979,4.22713871,19305.0,19304.0,4.15827744]
[1664602747942,4.22713871,19305.0,19304.0,4.23727744]
[1664602748387,3.99989619,19305.0,19304.0,4.59602144]
[1664602748847,3.99989619,19305.0,19304.0,4.23727744]
[1664602749046,3.99989619,19305.0,19304.0,4.51702144]
[1664602749834,3.99989619,19305.0,19304.0,4.59602144]
[1664602750066,3.99980829,19305.0,19304.0,4.59602144]
[1664602750493,4.22705081,19305.0,19304.0,4.13727744]
[1664602750714,3.99980829,19305.0,19304.0,4.13727744]
[1664602751154,3.99980829,19305.0,19304.0,4.05827744]
[1664602751610,3.99980829,19305.0,19304.0,4.10827744]
[1664602751828,4.15556265,19305.0,19304.0,4.59602144]
[1664602752050,4.15556265,19305.0,19304.0,4.23727744]
[1664602752269,4.15556265,19305.0,19304.0,4.59602144]
[1664602752508,4.38280517,19305.0,19304.0,4.23727744]
[1664602753442,4.38280517,19305.0,19304.0,4.51702144]
[1664602753897,4.38280517,19305.0,19304.0,4.23727744]
[1664602754255,4.38280517,19305.0,19304.0,4.59602144]
[1664602754894,4.38280517,19305.0,19304.0,4.18727744]
[1664602755292,4.38280517,19305.0,19304.0,4.10827744]
[1664602755721,4.38280517,19305.0,19304.0,4.51702144]
[1664602755968,4.38280517,19305.0,19304.0,4.23727744]
[1664602757193,4.38280517,19305.0,19304.0,4.15827744]
[1664602757628,4.38280517,19305.0,19304.0,4.51702144]
[1664602758059,4.38280517,19305.0,19304.0,4.23727744]
[1664602758493,4.22705081,19305.0,19304.0,4.23727744]
[1664602758706,4.22705081,19305.0,19304.0,4.59602144]
[1664602759149,4.22705081,19305.0,19304.0,4.15827744]
[1664602759300,4.22705081,19305.0,19304.0,4.51702144]
[1664602759752,4.22705081,19305.0,19304.0,4.15827744]
[1664602759969,4.22705081,19305.0,19304.0,4.23727744]
[1664602760210,4.22705081,19305.0,19304.0,4.59602144]
[1664602760495,3.99980829,19305.0,19304.0,4.59602144]
[1664602760959,4.22705081,19305.0,19304.0,4.23727744]
[1664602761233,4.22705081,19305.0,19304.0,4.15827744]
[1664602761359,4.22705081,19305.0,19304.0,4.51702144]
[1664602761771,4.22705081,19305.0,19304.0,4.55013344]
[1664602761988,4.22705081,19305.0,19304.0,4.59602144]
[1664602762213,3.99980829,19305.0,19304.0,4.59602144]
[1664602762650,4.22705081,19305.0,19304.0,4.23727744]
[1664602763078,4.22705081,19305.0,19304.0,4.51702144]
[1664602764009,4.22705081,19305.0,19304.0,4.59602144]
[1664602764440,4.38217354,19305.0,19304.0,4.59602144]
[1664602764658,4.38217354,19305.0,19304.0,4.60342144]
[1664602764958,4.15493102,19305.0,19304.0,4.60342144]
[1664602765384,4.15493102,19305.0,19304.0,4.52442144]
[1664602765979,4.15493102,19305.0,19304.0,4.60342144]
[1664602766575,4.38217354,19305.0,19304.0,4.60342144]
[1664602766838,4.38217354,19305.0,19304.0,4.24467744]
[1664602766985,4.22705081,19305.0,19304.0,4.52442144]
[1664602767639,3.99980829,19305.0,19304.0,4.52442144]
[1664602767856,3.99980829,19305.0,19304.0,5.20342144]
[1664602769019,4.22705081,19305.0,19304.0,4.52442144]
[1664602769239,4.22705081,19305.0,19304.0,4.16567744]
[1664602769690,4.22705081,19305.0,19304.0,4.52442144]
[1664602769931,4.22705081,19305.0,19304.0,4.55753344]
[1664602771035,4.22705081,19305.0,19304.0,4.16567744]
[1664602771487,4.22705081,19305.0,19304.0,4.52442144]
[1664602771704,4.22705081,19305.0,19304.0,4.47853344]
[1664602771923,4.22705081,19305.0,19304.0,4.55753344]
[1664602772421,4.38162175,19305.0,19304.0,4.60342144]
[1664602772632,4.38162175,19305.0,19304.0,4.24467744]
[1664602773269,4.38162175,19305.0,19304.0,4.16567744]
[1664602773723,4.38162175,19305.0,19304.0,4.52442144]
[1664602773978,4.38162175,19305.0,19304.0,4.60342144]
[1664602774447,4.38162175,19305.0,19304.0,4.24467744]
[1664602774673,4.38162175,19305.0,19304.0,4.60342144]
[1664602774911,4.38162175,19305.0,19304.0,4.24467744]
[1664602775399,4.38162175,19305.0,19304.0,4.52442144]
[1664602775622,4.22705081,19305.0,19304.0,4.52442144]
[1664602776063,4.22705081,19305.0,19304.0,4.60342144]
[1664602776290,4.22705081,19305.0,19304.0,4.24467744]
[1664602776533,4.22705081,19305.0,19304.0,4.60342144]
[1664602777205,4.22705081,19305.0,19304.0,4.52442144]
[1664602777643,4.22697249,19305.0,19304.0,4.52442144]
[1664602778079,4.22697249,19305.0,19304.0,4.24467744]
[1664602779241,4.22697249,19305.0,19304.0,4.16567744]
[1664602779678,4.22697249,19305.0,19304.0,4.52442144]
[1664602780186,4.22697249,19305.0,19304.0,4.24467744]
[1664602780410,4.22697249,19305.0,19304.0,4.60342144]
[1664602781296,4.22697249,19305.0,19304.0,4.52442144]
[1664602781536,4.22697249,19305.0,19304.0,4.16567744]
[1664602782001,4.22697249,19305.0,19304.0,4.24467744]
[1664602783120,4.3900663,19305.0,19304.0,4.24467744]
[1664602783339,4.3900663,19305.0,19304.0,4.16567744]
[1664602783568,4.3900663,19305.0,19304.0,4.52442144]
[1664602784054,4.3900663,19305.0,19304.0,4.24467744]
[1664602785394,4.3900663,19305.0,19304.0,4.60330979]
[1664602785632,4.3900663,19305.0,19304.0,4.24456579]
[1664602786060,4.3900663,19305.0,19304.0,4.32356579]
[1664602788152,4.3900663,19305.0,19304.0,4.40256579]
[1664602788603,4.22697249,19305.0,19304.0,4.40256579]
[1664602788832,3.22697249,19305.0,19304.0,4.40256579]
[1664602789305,3.22697249,19305.0,19304.0,4.16556579]
[1664602789961,3.22697249,19305.0,19304.0,4.52430979]
[1664602790184,3.22697249,19305.0,19304.0,4.16556579]
[1664602792080,3.22697249,19305.0,19304.0,4.24456579]
[1664602792299,3.22697249,19305.0,19304.0,4.60330979]
[1664602792762,3.22697249,19305.0,19304.0,4.24456579]
[1664602792989,3.22697249,19305.0,19304.0,4.60330979]
[1664602793210,3.22697249,19305.0,19304.0,4.52430979]
[1664602794108,3.22697249,19305.0,19304.0,4.60330979]
[1664602794322,3.22697249,19305.0,19304.0,5.20330979]
[1664602795113,3.22697249,19305.0,19304.0,4.16556579]
[1664602795335,3.22697249,19305.0,19304.0,5.12430979]
[1664602795843,2.99972997,19305.0,19304.0,5.12430979]
[1664602796054,2.99972997,19305.0,19304.0,5.24380605]
[1664602796296,3.15017601,19305.0,19304.0,5.24380605]